Workbook

Sheet Deposits
A1: DBA account #4489 | G1: Operations account #1854 | N1: Personal #1684 | T1: Personal #Golden1 CU
B2: =D2/8 -> 41134.4525 | C2: Total Deposits | D2: =SUM(Table1[Amount]) -> 329075.62 | H2: =J2/8 -> 29659.5575 | I2: Total Deposits | J2: =SUM(Table2[Amount]) -> 237276.46 | O2: =Q2/8 -> 3579.27375 | P2: Total Deposits | Q2: =SUM(Table3[Amount]) -> 28634.19 | U2: =W2/8 -> 4509.1675 | V2: Total Deposits | W2: =SUM(Table4[Amount]) -> 36073.34
B3: =D3/8 -> 3720.0375 | C3: Loan Deposits | D3: =SUMIF(Table1[Type Dep],"Loan",Table1[Amount]) -> 29760.3 | H3: =J3/8 -> 0 | I3: Loan Deposits | J3: =SUMIF(Table2[Type Dep],"Loan",Table2[Amount]) -> 0 | O3: =Q3/8 -> 0 | P3: Loan Deposits | Q3: =SUMIF(Table3[Type Dep],"Loan",Table3[Amount]) -> 0 | U3: =W3/8 -> 682.575 | V3: Loan Deposits | W3: =SUMIF(Table4[Type Dep],"Loan",Table4[Amount]) -> 5460.6
B4: 533.065 | C4: Transfer Deposits | D4: =SUMIF(Table1[Type Dep],"Transfer",Table1[Amount]) -> 4264.52 | H4: 28460.17125 | I4: Transfer Deposits | J4: =SUMIF(Table2[Type Dep],"Transfer",Table2[Amount]) -> 227681.37 | O4: 2578.02375 | P4: Transfer Deposits | Q4: =SUMIF(Table3[Type Dep],"Transfer",Table3[Amount]) -> 20624.19 | U4: 0 | V4: Transfer Deposits | W4: =SUMIF(Table4[Type Dep],"Transfer",Table4[Amount]) -> 0
B5: 36881.35 | C5: Actual Income: | D5: =D2-SUM(D3:D4) -> 295050.8 | H5: 1199.38625 | I5: Actual Income: | J5: =J2-SUM(J3:J4) -> 9595.09 | O5: 1001.25 | P5: Actual Income: | Q5: =Q2-SUM(Q3:Q4) -> 8010 | U5: 3826.5925 | V5: Actual Income: | W5: =W2-SUM(W3:W4) -> 30612.74
A7: Date | B7: Amount | C7: Description | D7: Raw | E7: Type Dep | G7: Date | H7: Amount | I7: Description | J7: Raw | K7: Type Dep | N7: Date | O7: Amount | P7: Description | Q7: Raw | R7: Type Dep | T7: Date | U7: Amount | V7: Description | W7: Raw | X7: Type Dep
A8: =LEFT(D8,4) -> 1/08 | B8: =MID(D8,6,(FIND(" ",D8,3)+1))*1 -> 400 | C8: =MID(D8,FIND(CHAR(160),SUBSTITUTE(D8," ",CHAR(160),2)),100) -> DEPOSIT | D8: 1/08 400.00 DEPOSIT | G8: =LEFT(J8,4) -> 1/02 | H8: =MID(J8,6,(FIND(" ",J8,3)+1))*1 -> 12 | I8: =MID(J8,FIND(CHAR(160),SUBSTITUTE(J8," ",CHAR(160),2)),100) -> Internet Transfer From 4489 | J8: 1/02 12.00 Internet Transfer From 4489 | K8: Transfer | N8: =LEFT(Q8,4) -> 3/01 | O8: =MID(Q8,6,(FIND(" ",Q8,3)+1))*1 -> 2667 | P8: =MID(Q8,FIND(CHAR(160),SUBSTITUTE(Q8," ",CHAR(160),2)),100) -> Internet Transfer From 4489 | Q8: 3/01 2,667.30 Internet Transfer From 4489 | R8: Transfer | T8: 2024-02-01 | U8: 3147.2 | V8: PUB EMP RET SYS (RET BENFT) | X8: Retire
A9: =LEFT(D9,4) -> 1/09 | B9: =MID(D9,6,(FIND(" ",D9,3)+1))*1 -> 50 | C9: =MID(D9,FIND(CHAR(160),SUBSTITUTE(D9," ",CHAR(160),2)),100) -> Trnsfr from Loan Acct Ending in 4972 | D9: 1/09 50.00 Trnsfr from Loan Acct Ending in 4972 | E9: Loan | G9: =LEFT(J9,4) -> 1/02 | H9: 8287 | I9: =MID(J9,FIND(CHAR(160),SUBSTITUTE(J9," ",CHAR(160),2)),100) -> Internet Transfer From 4489 | J9: 1/02 8,287.79 Internet Transfer From 4489 | K9: Transfer | N9: 3/21 | O9: 1750 | P9: DEPOSIT | Q9: 3/21 1,750.00 DEPOSIT | T9: 2024-02-01 | U9: 2000 | V9: Checking Deposit | X9: Deposit
A10: =LEFT(D10,4) -> 1/10 | B10: =MID(D10,6,(FIND(" ",D10,3)+1))*1 -> 100 | C10: =MID(D10,FIND(CHAR(160),SUBSTITUTE(D10," ",CHAR(160),2)),100) -> Trnsfr from Loan Acct Ending in 4972 | D10: 1/10 100.00 Trnsfr from Loan Acct Ending in 4972 | E10: Loan | G10: 1/16 | H10: 450 | I10: Internet Transfer From 1684 | J10: 1/16 450.00 Internet Transfer From 1684 | K10: Transfer | N10: 3/21 | P10: Internet Transfer From 4489 | Q10: 3/21 100.00 Internet Transfer From 4489 | R10: Transfer | T10: 2024-02-20 | U10: 2230 | V10: Checking Deposit-ACH-A-1218243 VENMO (CASHOUT) | X10: Venmo
A11: =LEFT(D11,4) -> 1/11 | B11: =MID(D11,6,(FIND(" ",D11,3)+1))*1 -> 600 | C11: =MID(D11,FIND(CHAR(160),SUBSTITUTE(D11," ",CHAR(160),2)),100) -> Trnsfr from Loan Acct Ending in 4972 | D11: 1/11 600.00 Trnsfr from Loan Acct Ending in 4972 | E11: Loan | G11: 1/19 | H11: 2453 | I11: Internet Transfer From 4489 | J11: 1/19 2,453.96 Internet Transfer From 4489 | K11: Transfer | N11: 3/21 | O11: 675.12 | P11: Internet Transfer From 4489 | Q11: 3/21 675.12 Internet Transfer From 4489 | R11: Transfer | T11: 2024-02-27 | U11: 10 | V11: Checking Deposit-ACH-A-1218243 VENMO (Payment) | X11: Venmo
A12: =LEFT(D12,4) -> 1/12 | B12: =MID(D12,6,(FIND(" ",D12,3)+1))*1 -> 150 | C12: =MID(D12,FIND(CHAR(160),SUBSTITUTE(D12," ",CHAR(160),2)),100) -> Trnsfr from Loan Acct Ending in 4972 | D12: 1/12 150.00 Trnsfr from Loan Acct Ending in 4972 | E12: Loan | G12: 1/19 | H12: 2888 | I12: Internet Transfer From 4489 | J12: 1/19 2,888.00 Internet Transfer From 4489 | K12: Transfer | N12: 3/27 | O12: 16.27 | P12: Internet Transfer From 4489 | Q12: 3/27 16.27 Internet Transfer From 4489 | R12: Transfer | T12: 2024-02-28 | U12: 3147.07 | V12: PUB EMP RET SYS (RET BENFT) | X12: Retire
A13: =LEFT(D13,4) -> 1/16 | B13: =MID(D13,6,(FIND(" ",D13,3)+1))*1 -> 100 | C13: =MID(D13,FIND(CHAR(160),SUBSTITUTE(D13," ",CHAR(160),2)),100) -> Trnsfr from Loan Acct Ending in 4972 | D13: 1/16 100.00 Trnsfr from Loan Acct Ending in 4972 | E13: Loan | G13: 1/22 | H13: 800 | I13: Internet Transfer From 4489 | J13: 1/22 800.00 Internet Transfer From 4489 | K13: Transfer | N13: 4/16 | O13: 316.88 | P13: Internet Transfer From 4489 | Q13: 4/16 316.88 Internet Transfer From 4489 | R13: Transfer | T13: 2024-03-15 | U13: 148.94 | V13: Checking Deposit | X13: Deposit
A14: =LEFT(D14,4) -> 1/17 | B14: =MID(D14,6,(FIND(" ",D14,3)+1))*1 -> 6097 | C14: =MID(D14,FIND(CHAR(160),SUBSTITUTE(D14," ",CHAR(160),2)),100) -> DEPOSIT | D14: 1/17 6,097.50 DEPOSIT | G14: 2/01 | H14: 15.46 | I14: Internet Transfer From 4489 | J14: 2/01 15.46 Internet Transfer From 4489 | K14: Transfer | N14: 4/23 | O14: 420 | P14: Internet Transfer From 4489 | Q14: 4/23 420.00 Internet Transfer From 4489 | R14: Transfer | T14: 2024-03-20 | U14: 5460.6 | V14: Checking Deposit-ACH-A-1470138 BRB Bestegg (LOAN) | X14: Loan
A15: =LEFT(D15,4) -> 1/19 | B15: =MID(D15,6,(FIND(" ",D15,3)+1))*1 -> 5868 | C15: =MID(D15,FIND(CHAR(160),SUBSTITUTE(D15," ",CHAR(160),2)),100) -> DEPOSIT | D15: 1/19 5,868.20 DEPOSIT | G15: 2/01 | H15: 450 | I15: Internet Transfer From 4489 | J15: 2/01 450.00 Internet Transfer From 4489 | K15: Transfer | N15: 4/25 | O15: 423.9 | P15: Internet Transfer From 4489 | Q15: 4/25 423.90 Internet Transfer From 4489 | R15: Transfer | T15: 2024-03-27 | U15: 3147.07 | V15: PUB EMP RET SYS (RET BENFT) | X15: Retire
A16: =LEFT(D16,4) -> 1/22 | B16: =MID(D16,6,(FIND(" ",D16,3)+1))*1 -> 20.01 | C16: =MID(D16,FIND(CHAR(160),SUBSTITUTE(D16," ",CHAR(160),2)),100) -> Internet Transfer From 1684 | D16: 1/22 20.01 Internet Transfer From 1684 | E16: Transfer | G16: 2/01 | H16: 778.85 | I16: Internet Transfer From 4489 | J16: 2/01 778.85 Internet Transfer From 4489 | K16: Transfer | N16: 4/25 | O16: 500 | P16: Internet Transfer From 4489 | Q16: 4/25 500.00 Internet Transfer From 4489 | R16: Transfer | T16: 2024-04-16 | U16: 70.6 | V16: SiriusXM
A17: =LEFT(D17,4) -> 2/01 | B17: =MID(D17,6,(FIND(" ",D17,3)+1))*1 -> 17500 | C17: =MID(D17,FIND(CHAR(160),SUBSTITUTE(D17," ",CHAR(160),2)),100) -> HEADWAYCAPITAL 2/HEADWAY | D17: 2/01 17,500.00 HEADWAYCAPITAL 2/HEADWAY | E17: Loan | G17: 2/02 | H17: 1788 | I17: Internet Transfer From 4489 | J17: 2/02 1,788.33 Internet Transfer From 4489 | K17: Transfer | N17: 5/01 | O17: 2437 | P17: Internet Transfer From 4489 | Q17: 5/01 2,437.30 Internet Transfer From 4489 | R17: Transfer | T17: 2024-04-29 | U17: 3051.82 | V17: PUB EMP RET SYS (RET BENFT) | X17: Retire
A18: =LEFT(D18,4) -> 2/05 | B18: =MID(D18,6,(FIND(" ",D18,3)+1))*1 -> 4000 | C18: =MID(D18,FIND(CHAR(160),SUBSTITUTE(D18," ",CHAR(160),2)),100) -> DEPOSIT | D18: 2/05 4,000.00 DEPOSIT | G18: 2/02 | H18: 7353 | I18: Internet Transfer From 4489 | J18: 2/02 7,353.30 Internet Transfer From 4489 | K18: Transfer | N18: 5/03 | O18: 2000 | P18: DEPOSIT | Q18: 5/03 2,000.00 DEPOSIT | T18: 2024-05-17 | U18: 355 | V18: Checking Deposit-ACH-A-1218243 VENMO (CASHOUT) | X18: Venmo
A19: =LEFT(D19,4) -> 2/05 | B19: =MID(D19,6,(FIND(" ",D19,3)+1))*1 -> 29.03 | C19: =MID(D19,FIND(CHAR(160),SUBSTITUTE(D19," ",CHAR(160),2)),100) -> Internet Transfer From 1684 | D19: 2/05 29.03 Internet Transfer From 1684 | E19: Transfer | G19: 2/06 | H19: 2223 | I19: Internet Transfer From 4489 | J19: 2/06 2,223.90 Internet Transfer From 4489 | K19: Transfer | N19: 5/13 | O19: 60 | P19: DEPOSIT | Q19: 5/13 60.00 DEPOSIT | T19: 2024-05-29 | U19: 3083.76 | V19: PUB EMP RET SYS (RET BENFT) | X19: Retire
A20: =LEFT(D20,4) -> 2/09 | B20: =MID(D20,6,(FIND(" ",D20,3)+1))*1 -> 4000 | C20: =MID(D20,FIND(CHAR(160),SUBSTITUTE(D20," ",CHAR(160),2)),100) -> DEPOSIT | D20: 2/09 4,000.00 DEPOSIT | G20: 2/12 | H20: 442.38 | I20: Internet Transfer From 4489 | J20: 2/12 442.38 Internet Transfer From 4489 | K20: Transfer | N20: 5/14 | O20: 350 | P20: DEPOSIT | Q20: 5/14 350.00 DEPOSIT | T20: 2024-06-21 | U20: 120 | V20: Checking Deposit-ACH-A-1218243 VENMO (CASHOUT) | X20: Venmo
A21: =LEFT(D21,4) -> 2/16 | B21: =MID(D21,6,(FIND(" ",D21,3)+1))*1 -> 200 | C21: =MID(D21,FIND(CHAR(160),SUBSTITUTE(D21," ",CHAR(160),2)),100) -> Internet Transfer From 1684 | D21: 2/16 200.00 Internet Transfer From 1684 | E21: Transfer | G21: 2/20 | H21: 1583 | I21: Internet Transfer From 1684 | J21: 2/20 1,583.00 Internet Transfer From 1684 | K21: Transfer | N21: 5/14 | O21: 0.65 | P21: Internet Transfer From 4489 | Q21: 5/14 00.65 Internet Transfer From 4489 | R21: Transfer | T21: 2024-06-24 | U21: 100 | V21: Checking Deposit-ACH-A-1218243 VENMO (CASHOUT) | X21: Venmo
A22: =LEFT(D22,4) -> 2/20 | B22: =MID(D22,6,(FIND(" ",D22,3)+1))*1 -> 200 | C22: =MID(D22,FIND(CHAR(160),SUBSTITUTE(D22," ",CHAR(160),2)),100) -> Internet Transfer From 1684 | D22: 2/20 200.00 Internet Transfer From 1684 | E22: Transfer | G22: 2/21 | H22: 100 | I22: Internet Transfer From 1684 | J22: 2/21 100.00 Internet Transfer From 1684 | K22: Transfer | N22: 5/17 | O22: 500 | P22: Internet Transfer From 4489 | Q22: 5/17 500.00 Internet Transfer From 4489 | R22: Transfer | T22: 2024-06-27 | U22: 3083.76 | V22: PUB EMP RET SYS (RET BENFT) | X22: Retire
A23: =LEFT(D23,4) -> 2/21 | B23: =MID(D23,6,(FIND(" ",D23,3)+1))*1 -> 2538 | C23: =MID(D23,FIND(CHAR(160),SUBSTITUTE(D23," ",CHAR(160),2)),100) -> DEPOSIT | D23: 2/21 2,538.41 DEPOSIT | G23: 2/22 | H23: 438.96 | I23: Internet Transfer From 4489 | J23: 2/22 438.96 Internet Transfer From 4489 | K23: Transfer | N23: 5/21 | O23: 740 | P23: DEPOSIT | Q23: 5/21 740.00 DEPOSIT | T23: 2024-07-08 | U23: 100 | V23: Checking Deposit-ACH-A-1218243 VENMO (CASHOUT) | X23: Venmo
A24: =LEFT(D24,4) -> 2/27 | B24: =MID(D24,6,(FIND(" ",D24,3)+1))*1 -> 31.42 | C24: =MID(D24,FIND(CHAR(160),SUBSTITUTE(D24," ",CHAR(160),2)),100) -> Internet Transfer From 1684 | D24: 2/27 31.42 Internet Transfer From 1684 | E24: Transfer | G24: 3/01 | H24: 12 | I24: Internet Transfer From 4489 | J24: 3/01 12.00 Internet Transfer From 4489 | K24: Transfer | N24: 5/31 | O24: 2437 | P24: Internet Transfer From 4489 | Q24: 5/31 2,437.30 Internet Transfer From 4489 | R24: Transfer | T24: 2024-07-16 | U24: 500 | V24: Checking Deposit | X24: Deposit
A25: =LEFT(D25,4) -> 2/29 | B25: =MID(D25,6,(FIND(" ",D25,3)+1))*1 -> 4627 | C25: =MID(D25,FIND(CHAR(160),SUBSTITUTE(D25," ",CHAR(160),2)),100) -> DEPOSIT | D25: 2/29 4,627.80 DEPOSIT | G25: 3/06 | H25: 2376 | I25: Internet Transfer From 4489 | J25: 3/06 2,376.09 Internet Transfer From 4489 | K25: Transfer | N25: 6/05 | O25: 779.7 | P25: Internet Transfer From 4489 | Q25: 6/05 779.70 Internet Transfer From 4489 | R25: Transfer | T25: 2024-07-30 | U25: 3083.76 | V25: PUB EMP RET SYS (RET BENFT) | X25: Retire
A26: =LEFT(D26,4) -> 2/29 | B26: =MID(D26,6,(FIND(" ",D26,3)+1))*1 -> 9000 | C26: =MID(D26,FIND(CHAR(160),SUBSTITUTE(D26," ",CHAR(160),2)),100) -> DEPOSIT | D26: 2/29 9,000.00 DEPOSIT | G26: 3/06 | H26: 4200 | I26: Internet Transfer From 4489 | J26: 3/06 4,200.00 Internet Transfer From 4489 | K26: Transfer | N26: 6/10 | O26: 148 | P26: Internet Transfer From 4489 | Q26: 6/10 148.00 Internet Transfer From 4489 | R26: Transfer | T26: 2024-08-04 | U26: 25 | V26: Checking Deposit GRAND SIERRA RSRT
A27: =LEFT(D27,4) -> 3/06 | B27: =MID(D27,6,(FIND(" ",D27,3)+1))*1 -> 2300 | C27: =MID(D27,FIND(CHAR(160),SUBSTITUTE(D27," ",CHAR(160),2)),100) -> DEPOSIT | D27: 3/06 2,300.00 DEPOSIT | G27: 3/11 | H27: 780 | I27: Internet Transfer From 4489 | J27: 3/11 780.00 Internet Transfer From 4489 | K27: Transfer | N27: 6/11 | O27: 810.27 | P27: Internet Transfer From 4489 | Q27: 6/11 810.27 Internet Transfer From 4489 | R27: Transfer | T27: 2024-08-04 | U27: 25 | V27: Checking Deposit GRAND SIERRA RSRT
A28: =LEFT(D28,4) -> 3/08 | B28: =MID(D28,6,(FIND(" ",D28,3)+1))*1 -> 4100 | C28: =MID(D28,FIND(CHAR(160),SUBSTITUTE(D28," ",CHAR(160),2)),100) -> DEPOSIT | D28: 3/08 4,100.00 DEPOSIT | G28: 3/11 | H28: 1312 | I28: Internet Transfer From 4489 | J28: 3/11 1,312.27 Internet Transfer From 4489 | K28: Transfer | N28: 6/12 | O28: 85 | P28: Internet Transfer From 4489 | Q28: 6/12 85.00 Internet Transfer From 4489 | R28: Transfer | T28: 2024-08-21 | U28: 100 | V28: Checking Deposit | X28: Deposit
A29: =LEFT(D29,4) -> 3/08 | B29: =MID(D29,6,(FIND(" ",D29,3)+1))*1 -> 6000 | C29: =MID(D29,FIND(CHAR(160),SUBSTITUTE(D29," ",CHAR(160),2)),100) -> DEPOSIT | D29: 3/08 6,000.00 DEPOSIT | G29: 3/11 | H29: 6576 | I29: Internet Transfer From 4489 | J29: 3/11 6,576.09 Internet Transfer From 4489 | K29: Transfer | N29: 6/21 | O29: 233.57 | P29: Internet Transfer From 4489 | Q29: 6/21 233.57 Internet Transfer From 4489 | R29: Transfer | T29: 2024-08-28 | U29: 3083.76 | V29: PUB EMP RET SYS (RET BENFT) | X29: Retire
A30: =LEFT(D30,4) -> 3/20 | B30: =MID(D30,6,(FIND(" ",D30,3)+1))*1 -> 14000 | C30: =MID(D30,FIND(CHAR(160),SUBSTITUTE(D30," ",CHAR(160),2)),100) -> DEPOSIT | D30: 3/20 14,000.00 DEPOSIT | G30: 3/19 | H30: 315.09 | I30: DEPOSIT | J30: 3/19 315.09 DEPOSIT | N30: 6/21 | O30: 316 | P30: Internet Transfer From 4489 | Q30: 6/21 316.00 Internet Transfer From 4489 | R30: Transfer
A31: =LEFT(D31,4) -> 3/20 | B31: =MID(D31,6,(FIND(" ",D31,3)+1))*1 -> 0.8 | C31: =MID(D31,FIND(CHAR(160),SUBSTITUTE(D31," ",CHAR(160),2)),100) -> DEPOSIT CORRECTION CREDIT | D31: 3/20 00.80 DEPOSIT CORRECTION CREDIT | G31: 3/21 | H31: 340 | I31: Internet Transfer From 4489 | J31: 3/21 340.00 Internet Transfer From 4489 | K31: Transfer | N31: 7/01 | O31: 1000 | P31: Internet Transfer From 1854 | Q31: 7/01 1,000.00 Internet Transfer From 1854 | R31: Transfer
A32: =LEFT(D32,4) -> 3/26 | B32: =MID(D32,6,(FIND(" ",D32,3)+1))*1 -> 1355 | C32: =MID(D32,FIND(CHAR(160),SUBSTITUTE(D32," ",CHAR(160),2)),100) -> DEPOSIT | D32: 3/26 1,355.00 DEPOSIT | G32: 3/21 | H32: 800 | I32: Internet Transfer From 4489 | J32: 3/21 800.00 Internet Transfer From 4489 | K32: Transfer | N32: 7/02 | O32: 1410 | P32: DEPOSIT | Q32: 7/02 1,410.00 DEPOSIT
A33: =LEFT(D33,4) -> 3/29 | B33: =MID(D33,6,(FIND(" ",D33,3)+1))*1 -> 6220 | C33: =MID(D33,FIND(CHAR(160),SUBSTITUTE(D33," ",CHAR(160),2)),100) -> DEPOSIT | D33: 3/29 6,220.00 DEPOSIT | G33: 3/21 | H33: 7889 | I33: Internet Transfer From 4489 | J33: 3/21 7,889.65 Internet Transfer From 4489 | K33: Transfer | N33: 7/08 | O33: 900 | P33: DEPOSIT | Q33: 7/08 900.00 DEPOSIT
A34: =LEFT(D34,4) -> 4/01 | B34: =MID(D34,6,(FIND(" ",D34,3)+1))*1 -> 2000 | C34: =MID(D34,FIND(CHAR(160),SUBSTITUTE(D34," ",CHAR(160),2)),100) -> DEPOSIT | D34: 4/01 2,000.00 DEPOSIT | G34: 3/27 | H34: 2800 | I34: Internet Transfer From 4489 | J34: 3/27 2,800.00 Internet Transfer From 4489 | K34: Transfer | N34: 7/08 | O34: 782.53 | P34: Internet Transfer From 4489 | Q34: 7/08 782.53 Internet Transfer From 4489 | R34: Transfer
A35: =LEFT(D35,4) -> 4/04 | B35: =MID(D35,6,(FIND(" ",D35,3)+1))*1 -> 3800 | C35: =MID(D35,FIND(CHAR(160),SUBSTITUTE(D35," ",CHAR(160),2)),100) -> DEPOSIT | D35: 4/04 3,800.00 DEPOSIT | G35: 3/29 | H35: 400 | I35: Internet Transfer From 4489 | J35: 3/29 400.00 Internet Transfer From 4489 | K35: Transfer | N35: 7/09 | O35: 200 | P35: Internet Transfer From 4489 | Q35: 7/09 200.00 Internet Transfer From 4489 | R35: Transfer
A36: =LEFT(D36,4) -> 4/05 | B36: =MID(D36,6,(FIND(" ",D36,3)+1))*1 -> 9265 | C36: =MID(D36,FIND(CHAR(160),SUBSTITUTE(D36," ",CHAR(160),2)),100) -> DEPOSIT | D36: 4/05 9,265.00 DEPOSIT | G36: 4/02 | H36: 46.75 | I36: Internet Transfer From 4489 | J36: 4/02 46.75 Internet Transfer From 4489 | K36: Transfer | N36: 7/11 | O36: 200 | P36: DEPOSIT | Q36: 7/11 200.00 DEPOSIT
A37: =LEFT(D37,4) -> 4/09 | B37: =MID(D37,6,(FIND(" ",D37,3)+1))*1 -> 2200 | C37: =MID(D37,FIND(CHAR(160),SUBSTITUTE(D37," ",CHAR(160),2)),100) -> DEPOSIT | D37: 4/09 2,200.00 DEPOSIT | G37: 4/02 | H37: 3463 | I37: Internet Transfer From 4489 | J37: 4/02 3,463.65 Internet Transfer From 4489 | K37: Transfer | N37: 7/15 | O37: 450 | P37: DEPOSIT | Q37: 7/15 450.00 DEPOSIT
A38: =LEFT(D38,4) -> 4/12 | B38: =MID(D38,6,(FIND(" ",D38,3)+1))*1 -> 7175 | C38: =MID(D38,FIND(CHAR(160),SUBSTITUTE(D38," ",CHAR(160),2)),100) -> DEPOSIT | D38: 4/12 7,175.00 DEPOSIT | G38: 4/05 | H38: 10898 | I38: Internet Transfer From 4489 | J38: 4/05 10,898.46 Internet Transfer From 4489 | K38: Transfer | N38: 7/16 | O38: 86 | P38: Internet Transfer From 4489 | Q38: 7/16 86.00 Internet Transfer From 4489 | R38: Transfer
A39: =LEFT(D39,4) -> 4/17 | B39: =MID(D39,6,(FIND(" ",D39,3)+1))*1 -> 11356 | C39: =MID(D39,FIND(CHAR(160),SUBSTITUTE(D39," ",CHAR(160),2)),100) -> DEPOSIT | D39: 4/17 11,356.00 DEPOSIT | G39: 4/11 | H39: 35 | I39: Internet Transfer From 4489 | J39: 4/11 35.00 Internet Transfer From 4489 | K39: Transfer | N39: 7/22 | O39: 300 | P39: Internet Transfer From 4489 | Q39: 7/22 300.00 Internet Transfer From 4489 | R39: Transfer
A40: =LEFT(D40,4) -> 4/22 | B40: =MID(D40,6,(FIND(" ",D40,3)+1))*1 -> 2800 | C40: =MID(D40,FIND(CHAR(160),SUBSTITUTE(D40," ",CHAR(160),2)),100) -> DEPOSIT | D40: 4/22 2,800.00 DEPOSIT | G40: 4/11 | H40: 56.03 | I40: Internet Transfer From 4489 | J40: 4/11 56.03 Internet Transfer From 4489 | K40: Transfer | N40: 7/22 | O40: 400 | P40: Internet Transfer From 4489 | Q40: 7/22 400.00 Internet Transfer From 4489 | R40: Transfer
A41: =LEFT(D41,4) -> 4/22 | B41: =MID(D41,6,(FIND(" ",D41,3)+1))*1 -> 3370 | C41: =MID(D41,FIND(CHAR(160),SUBSTITUTE(D41," ",CHAR(160),2)),100) -> DEPOSIT | D41: 4/22 3,370.00 DEPOSIT | G41: 4/17 | H41: 8020 | I41: Internet Transfer From 4489 | J41: 4/17 8,020.79 Internet Transfer From 4489 | K41: Transfer | N41: 7/24 | O41: 498.3 | P41: Internet Transfer From 4489 | Q41: 7/24 498.30 Internet Transfer From 4489 | R41: Transfer
A42: =LEFT(D42,4) -> 4/30 | B42: =MID(D42,6,(FIND(" ",D42,3)+1))*1 -> 500 | C42: =MID(D42,FIND(CHAR(160),SUBSTITUTE(D42," ",CHAR(160),2)),100) -> Internet Transfer From 1854 | D42: 4/30 500.00 Internet Transfer From 1854 | E42: Transfer | G42: 4/17 | H42: 8218 | I42: Internet Transfer From 4489 | J42: 4/17 8,218.23 Internet Transfer From 4489 | K42: Transfer | N42: 7/30 | O42: 2400 | P42: Internet Transfer From 4489 | Q42: 7/30 2,400.00 Internet Transfer From 4489 | R42: Transfer
A43: =LEFT(D43,4) -> 4/30 | B43: =MID(D43,6,(FIND(" ",D43,3)+1))*1 -> 1000 | C43: =MID(D43,FIND(CHAR(160),SUBSTITUTE(D43," ",CHAR(160),2)),100) -> Internet Transfer From 1854 | D43: 4/30 1,000.00 Internet Transfer From 1854 | E43: Transfer | G43: 4/23 | H43: 800 | I43: Internet Transfer From 4489 | J43: 4/23 800.00 Internet Transfer From 4489 | K43: Transfer | N43: 7/31 | O43: 200 | P43: Internet Transfer From 4489 | Q43: 7/31 200.00 Internet Transfer From 4489 | R43: Transfer
A44: =LEFT(D44,4) -> 4/30 | B44: =MID(D44,6,(FIND(" ",D44,3)+1))*1 -> 350 | C44: =MID(D44,FIND(CHAR(160),SUBSTITUTE(D44," ",CHAR(160),2)),100) -> Trnsfr from Loan Acct Ending in 4972 | D44: 4/30 350.00 Trnsfr from Loan Acct Ending in 4972 | E44: Loan | G44: 4/29 | H44: 1500 | I44: Internet Transfer From 4489 | J44: 4/29 1,500.00 Internet Transfer From 4489 | K44: Transfer | N44: 8/05 | O44: 96 | P44: Internet Transfer From 4489 | Q44: 8/05 96.00 Internet Transfer From 4489 | R44: Transfer
A45: =LEFT(D45,4) -> 5/01 | B45: =MID(D45,6,(FIND(" ",D45,3)+1))*1 -> 14226 | C45: =MID(D45,FIND(CHAR(160),SUBSTITUTE(D45," ",CHAR(160),2)),100) -> DEPOSIT | D45: 5/01 14,226.00 DEPOSIT | G45: 5/01 | H45: 2315 | I45: Internet Transfer From 4489 | J45: 5/01 2,315.80 Internet Transfer From 4489 | K45: Transfer | N45: 8/12 | O45: 150 | P45: DEPOSIT | Q45: 8/12 150.00 DEPOSIT
A46: =LEFT(D46,4) -> 5/01 | B46: =MID(D46,6,(FIND(" ",D46,3)+1))*1 -> 150 | C46: =MID(D46,FIND(CHAR(160),SUBSTITUTE(D46," ",CHAR(160),2)),100) -> Trnsfr from Loan Acct Ending in 4972 | D46: 5/01 150.00 Trnsfr from Loan Acct Ending in 4972 | E46: Loan | G46: 5/01 | H46: 8444 | I46: Internet Transfer From 4489 | J46: 5/01 8,444.00 Internet Transfer From 4489 | K46: Transfer | N46: 8/14 | O46: 100 | P46: Internet Transfer From 4489 | Q46: 8/14 100.00 Internet Transfer From 4489 | R46: Transfer
A47: =LEFT(D47,4) -> 5/02 | B47: =MID(D47,6,(FIND(" ",D47,3)+1))*1 -> 200 | C47: =MID(D47,FIND(CHAR(160),SUBSTITUTE(D47," ",CHAR(160),2)),100) -> Trnsfr from Loan Acct Ending in 4972 | D47: 5/02 200.00 Trnsfr from Loan Acct Ending in 4972 | E47: Loan | G47: 5/03 | H47: 1999 | I47: Internet Transfer From 1684 | J47: 5/03 1,999.72 Internet Transfer From 1684 | K47: Transfer | N47: 8/15 | O47: 390 | P47: Internet Transfer From 4489 | Q47: 8/15 390.00 Internet Transfer From 4489 | R47: Transfer
A48: =LEFT(D48,4) -> 5/03 | B48: =MID(D48,6,(FIND(" ",D48,3)+1))*1 -> 150 | C48: =MID(D48,FIND(CHAR(160),SUBSTITUTE(D48," ",CHAR(160),2)),100) -> Trnsfr from Loan Acct Ending in 4972 | D48: 5/03 150.00 Trnsfr from Loan Acct Ending in 4972 | E48: Loan | G48: 5/06 | H48: 634.67 | I48: Internet Transfer From 4489 | J48: 5/06 634.67 Internet Transfer From 4489 | K48: Transfer | N48: 8/19 | O48: 100 | P48: Internet Transfer From 4489 | Q48: 8/19 100.00 Internet Transfer From 4489 | R48: Transfer
A49: =LEFT(D49,4) -> 5/06 | B49: =MID(D49,6,(FIND(" ",D49,3)+1))*1 -> 5156 | C49: =MID(D49,FIND(CHAR(160),SUBSTITUTE(D49," ",CHAR(160),2)),100) -> DEPOSIT | D49: 5/06 5,156.00 DEPOSIT | G49: 5/06 | H49: 1800 | I49: Internet Transfer From 4489 | J49: 5/06 1,800.00 Internet Transfer From 4489 | K49: Transfer | N49: 8/20 | O49: 305 | P49: Internet Transfer From 4489 | Q49: 8/20 305.00 Internet Transfer From 4489 | R49: Transfer
A50: =LEFT(D50,4) -> 5/06 | B50: =MID(D50,6,(FIND(" ",D50,3)+1))*1 -> 1900 | C50: =MID(D50,FIND(CHAR(160),SUBSTITUTE(D50," ",CHAR(160),2)),100) -> HEADWAYCAPITAL 2/HEADWAY | D50: 5/06 1,900.00 HEADWAYCAPITAL 2/HEADWAY | E50: Loan | G50: 5/08 | H50: 1445 | I50: Internet Transfer From 4489 | J50: 5/08 1,445.39 Internet Transfer From 4489 | K50: Transfer | N50: 8/26 | O50: 1000 | P50: Internet Transfer From 4489 | Q50: 8/26 1,000.00 Internet Transfer From 4489 | R50: Transfer
A51: =LEFT(D51,4) -> 5/06 | B51: =MID(D51,6,(FIND(" ",D51,3)+1))*1 -> 0.28 | C51: =MID(D51,FIND(CHAR(160),SUBSTITUTE(D51," ",CHAR(160),2)),100) -> Internet Transfer From 1684 | D51: 5/06 00.28 Internet Transfer From 1684 | E51: Transfer | G51: 5/10 | H51: 1910 | I51: Internet Transfer From 4489 | J51: 5/10 1,910.00 Internet Transfer From 4489 | K51: Transfer
A52: =LEFT(D52,4) -> 5/10 | B52: =MID(D52,6,(FIND(" ",D52,3)+1))*1 -> 905 | C52: =MID(D52,FIND(CHAR(160),SUBSTITUTE(D52," ",CHAR(160),2)),100) -> DEPOSIT | D52: 5/10 905.00 DEPOSIT | G52: 5/17 | H52: 4899 | I52: Internet Transfer From 4489 | J52: 5/17 4,899.29 Internet Transfer From 4489 | K52: Transfer
A53: =LEFT(D53,4) -> 5/14 | B53: =MID(D53,6,(FIND(" ",D53,3)+1))*1 -> 50 | C53: =MID(D53,FIND(CHAR(160),SUBSTITUTE(D53," ",CHAR(160),2)),100) -> Trnsfr from Loan Acct Ending in 4972 | D53: 5/14 50.00 Trnsfr from Loan Acct Ending in 4972 | E53: Loan | G53: 5/20 | H53: 12164 | I53: Internet Transfer From 4489 | J53: 5/20 12,164.95 Internet Transfer From 4489 | K53: Transfer
A54: =LEFT(D54,4) -> 5/15 | B54: =MID(D54,6,(FIND(" ",D54,3)+1))*1 -> 50 | C54: =MID(D54,FIND(CHAR(160),SUBSTITUTE(D54," ",CHAR(160),2)),100) -> Trnsfr from Loan Acct Ending in 4972 | D54: 5/15 50.00 Trnsfr from Loan Acct Ending in 4972 | E54: Loan | G54: 5/21 | H54: 358.35 | I54: Internet Transfer From 4489 | J54: 5/21 358.35 Internet Transfer From 4489 | K54: Transfer
A55: =LEFT(D55,4) -> 5/17 | B55: =MID(D55,6,(FIND(" ",D55,3)+1))*1 -> 9000 | C55: =MID(D55,FIND(CHAR(160),SUBSTITUTE(D55," ",CHAR(160),2)),100) -> DEPOSIT | D55: 5/17 9,000.00 DEPOSIT | G55: 5/21 | H55: 428 | I55: Internet Transfer From 1684 | J55: 5/21 428.00 Internet Transfer From 1684 | K55: Transfer
A56: =LEFT(D56,4) -> 5/17 | B56: =MID(D56,6,(FIND(" ",D56,3)+1))*1 -> 10000 | C56: =MID(D56,FIND(CHAR(160),SUBSTITUTE(D56," ",CHAR(160),2)),100) -> DEPOSIT | D56: 5/17 10,000.40 DEPOSIT | G56: 6/03 | H56: 12 | I56: Internet Transfer From 4489 | J56: 6/03 12.00 Internet Transfer From 4489 | K56: Transfer
A57: =LEFT(D57,4) -> 5/31 | B57: =MID(D57,6,(FIND(" ",D57,3)+1))*1 -> 9250 | C57: =MID(D57,FIND(CHAR(160),SUBSTITUTE(D57," ",CHAR(160),2)),100) -> DEPOSIT | D57: 5/31 9,250.00 DEPOSIT | G57: 6/04 | H57: 13039 | I57: Internet Transfer From 4489 | J57: 6/04 13,039.65 Internet Transfer From 4489 | K57: Transfer
A58: =LEFT(D58,4) -> 6/04 | B58: =MID(D58,6,(FIND(" ",D58,3)+1))*1 -> 13100 | C58: =MID(D58,FIND(CHAR(160),SUBSTITUTE(D58," ",CHAR(160),2)),100) -> DEPOSIT | D58: 6/04 13,100.00 DEPOSIT | G58: 6/05 | H58: 11057 | I58: Internet Transfer From 4489 | J58: 6/05 11,057.86 Internet Transfer From 4489 | K58: Transfer
A59: =LEFT(D59,4) -> 6/04 | B59: =MID(D59,6,(FIND(" ",D59,3)+1))*1 -> 3 | C59: =MID(D59,FIND(CHAR(160),SUBSTITUTE(D59," ",CHAR(160),2)),100) -> DEPOSIT CORRECTION CREDIT | D59: 6/04 3.00 DEPOSIT CORRECTION CREDIT | G59: 6/07 | H59: 1429 | I59: Internet Transfer From 4489 | J59: 6/07 1,429.71 Internet Transfer From 4489 | K59: Transfer
A60: =LEFT(D60,4) -> 6/05 | B60: =MID(D60,6,(FIND(" ",D60,3)+1))*1 -> 11244 | C60: =MID(D60,FIND(CHAR(160),SUBSTITUTE(D60," ",CHAR(160),2)),100) -> DEPOSIT | D60: 6/05 11,244.00 DEPOSIT | G60: 6/10 | H60: 550 | I60: Internet Transfer From 4489 | J60: 6/10 550.00 Internet Transfer From 4489 | K60: Transfer
A61: =LEFT(D61,4) -> 6/07 | B61: =MID(D61,6,(FIND(" ",D61,3)+1))*1 -> 1776 | C61: =MID(D61,FIND(CHAR(160),SUBSTITUTE(D61," ",CHAR(160),2)),100) -> DEPOSIT | D61: 6/07 1,776.00 DEPOSIT | G61: 6/11 | H61: 228.82 | I61: Internet Transfer From 4489 | J61: 6/11 228.82 Internet Transfer From 4489 | K61: Transfer
A62: =LEFT(D62,4) -> 6/12 | B62: =MID(D62,6,(FIND(" ",D62,3)+1))*1 -> 575 | C62: =MID(D62,FIND(CHAR(160),SUBSTITUTE(D62," ",CHAR(160),2)),100) -> DEPOSIT | D62: 6/12 575.00 DEPOSIT | G62: 6/12 | H62: 215.13 | I62: Internet Transfer From 4489 | J62: 6/12 215.13 Internet Transfer From 4489 | K62: Transfer
A63: =LEFT(D63,4) -> 6/14 | B63: =MID(D63,6,(FIND(" ",D63,3)+1))*1 -> 6268 | C63: =MID(D63,FIND(CHAR(160),SUBSTITUTE(D63," ",CHAR(160),2)),100) -> DEPOSIT | D63: 6/14 6,268.00 DEPOSIT | G63: 6/14 | H63: 82 | I63: Internet Transfer From 4489 | J63: 6/14 82.00 Internet Transfer From 4489 | K63: Transfer
A64: =LEFT(D64,4) -> 6/20 | B64: =MID(D64,6,(FIND(" ",D64,3)+1))*1 -> 10000 | C64: =MID(D64,FIND(CHAR(160),SUBSTITUTE(D64," ",CHAR(160),2)),100) -> DEPOSIT | D64: 6/20 10,000.00 DEPOSIT | G64: 6/20 | H64: 9759 | I64: Internet Transfer From 4489 | J64: 6/20 9,759.20 Internet Transfer From 4489 | K64: Transfer
A65: =LEFT(D65,4) -> 6/24 | B65: =MID(D65,6,(FIND(" ",D65,3)+1))*1 -> 50 | C65: =MID(D65,FIND(CHAR(160),SUBSTITUTE(D65," ",CHAR(160),2)),100) -> Trnsfr from Loan Acct Ending in 4972 | D65: 6/24 50.00 Trnsfr from Loan Acct Ending in 4972 | E65: Loan | G65: 6/21 | H65: 794.29 | I65: Internet Transfer From 4489 | J65: 6/21 794.29 Internet Transfer From 4489 | K65: Transfer
A66: =LEFT(D66,4) -> 6/28 | B66: =MID(D66,6,(FIND(" ",D66,3)+1))*1 -> 1500 | C66: =MID(D66,FIND(CHAR(160),SUBSTITUTE(D66," ",CHAR(160),2)),100) -> HEADWAYCAPITAL 2/HEADWAY | D66: 6/28 1,500.00 HEADWAYCAPITAL 2/HEADWAY | E66: Loan | G66: 7/01 | H66: 1342 | I66: Internet Transfer From 4489 | J66: 7/01 1,342.27 Internet Transfer From 4489 | K66: Transfer
A67: =LEFT(D67,4) -> 7/01 | B67: =MID(D67,6,(FIND(" ",D67,3)+1))*1 -> 1960 | C67: =MID(D67,FIND(CHAR(160),SUBSTITUTE(D67," ",CHAR(160),2)),100) -> Rev: HEADWAYCAPITAL 1/HEADWAY | D67: 7/01 1,960.60 Rev: HEADWAYCAPITAL 1/HEADWAY | E67: Loan | G67: 7/02 | H67: 9280 | I67: DEPOSIT | J67: 7/02 9,280.00 DEPOSIT
A68: =LEFT(D68,4) -> 7/02 | B68: =MID(D68,6,(FIND(" ",D68,3)+1))*1 -> 1.04 | C68: =MID(D68,FIND(CHAR(160),SUBSTITUTE(D68," ",CHAR(160),2)),100) -> Internet Transfer From 1684 | D68: 7/02 01.04 Internet Transfer From 1684 | E68: Transfer | G68: 7/08 | H68: 212.92 | I68: Internet Transfer From 4489 | J68: 7/08 212.92 Internet Transfer From 4489 | K68: Transfer
A69: =LEFT(D69,4) -> 7/02 | B69: =MID(D69,6,(FIND(" ",D69,3)+1))*1 -> 31.13 | C69: =MID(D69,FIND(CHAR(160),SUBSTITUTE(D69," ",CHAR(160),2)),100) -> Internet Transfer From 1854 | D69: 7/02 31.13 Internet Transfer From 1854 | E69: Transfer | G69: 7/08 | H69: 9362 | I69: Internet Transfer From 4489 | J69: 7/08 9,362.29 Internet Transfer From 4489 | K69: Transfer
A70: =LEFT(D70,4) -> 7/08 | B70: =MID(D70,6,(FIND(" ",D70,3)+1))*1 -> 11000 | C70: =MID(D70,FIND(CHAR(160),SUBSTITUTE(D70," ",CHAR(160),2)),100) -> DEPOSIT | D70: 7/08 11,000.00 DEPOSIT | G70: 7/11 | H70: 200 | I70: Internet Transfer From 1684 | J70: 7/11 200.00 Internet Transfer From 1684 | K70: Transfer
A71: =LEFT(D71,4) -> 7/08 | B71: =MID(D71,6,(FIND(" ",D71,3)+1))*1 -> 2.83 | C71: =MID(D71,FIND(CHAR(160),SUBSTITUTE(D71," ",CHAR(160),2)),100) -> Internet Transfer From 1684 | D71: 7/08 02.83 Internet Transfer From 1684 | E71: Transfer | G71: 7/11 | H71: 800 | I71: Internet Transfer From 1684 | J71: 7/11 800.00 Internet Transfer From 1684 | K71: Transfer
A72: =LEFT(D72,4) -> 7/09 | B72: =MID(D72,6,(FIND(" ",D72,3)+1))*1 -> 300 | C72: =MID(D72,FIND(CHAR(160),SUBSTITUTE(D72," ",CHAR(160),2)),100) -> Internet Transfer From 1684 | D72: 7/09 300.00 Internet Transfer From 1684 | E72: Transfer | G72: 7/16 | H72: =MID(J72,6,(FIND(" ",J72,3)+1))*1 -> 288 | I72: Internet Transfer From 4489 | J72: 7/16 288.00 Internet Transfer From 4489 | K72: Transfer
A73: =LEFT(D73,4) -> 7/10 | B73: =MID(D73,6,(FIND(" ",D73,3)+1))*1 -> 1960 | C73: =MID(D73,FIND(CHAR(160),SUBSTITUTE(D73," ",CHAR(160),2)),100) -> Rev: HEADWAYCAPITAL 1/RETRY PYMT | D73: 7/10 1,960.60 Rev: HEADWAYCAPITAL 1/RETRY PYMT | E73: Loan | G73: =LEFT(J73,4) -> 7/22 | H73: 200 | I73: =MID(J73,FIND(CHAR(160),SUBSTITUTE(J73," ",CHAR(160),2)),100) -> Internet Transfer From 4489 | J73: 7/22 200.00 Internet Transfer From 4489 | K73: Transfer
A74: =LEFT(D74,4) -> 7/11 | B74: =MID(D74,6,(FIND(" ",D74,3)+1))*1 -> 25 | C74: =MID(D74,FIND(CHAR(160),SUBSTITUTE(D74," ",CHAR(160),2)),100) -> DEPOSIT | D74: 7/11 25.00 DEPOSIT | G74: 7/22 | H74: 380 | I74: Internet Transfer From 4489 | J74: 7/22 380.00 Internet Transfer From 4489 | K74: Transfer
A75: =LEFT(D75,4) -> 7/12 | B75: =MID(D75,6,(FIND(" ",D75,3)+1))*1 -> 600 | C75: =MID(D75,FIND(CHAR(160),SUBSTITUTE(D75," ",CHAR(160),2)),100) -> DEPOSIT | D75: 7/12 600.00 DEPOSIT | G75: 7/22 | H75: 420 | I75: Internet Transfer From 1684 | J75: 7/22 420.00 Internet Transfer From 1684 | K75: Transfer
A76: =LEFT(D76,4) -> 7/16 | B76: =MID(D76,6,(FIND(" ",D76,3)+1))*1 -> 2055 | C76: =MID(D76,FIND(CHAR(160),SUBSTITUTE(D76," ",CHAR(160),2)),100) -> DEPOSIT | D76: 7/16 2,055.00 DEPOSIT | G76: 7/22 | H76: 9001 | I76: Internet Transfer From 4489 | J76: 7/22 9,001.49 Internet Transfer From 4489 | K76: Transfer
A77: =LEFT(D77,4) -> 7/17 | B77: =MID(D77,6,(FIND(" ",D77,3)+1))*1 -> 1960 | C77: =MID(D77,FIND(CHAR(160),SUBSTITUTE(D77," ",CHAR(160),2)),100) -> Rev: HEADWAYCAPITAL 1/RETRY PYMT | D77: 7/17 1,960.60 Rev: HEADWAYCAPITAL 1/RETRY PYMT | E77: Loan | G77: 7/24 | H77: 980.3 | I77: Internet Transfer From 4489 | J77: 7/24 980.30 Internet Transfer From 4489 | K77: Transfer
A78: =LEFT(D78,4) -> 7/22 | B78: =MID(D78,6,(FIND(" ",D78,3)+1))*1 -> 9444 | C78: =MID(D78,FIND(CHAR(160),SUBSTITUTE(D78," ",CHAR(160),2)),100) -> DEPOSIT | D78: 7/22 9,444.00 DEPOSIT | G78: 7/30 | H78: 1340 | I78: Internet Transfer From 4489 | J78: 7/30 1,340.15 Internet Transfer From 4489 | K78: Transfer
A79: =LEFT(D79,4) -> 7/22 | B79: =MID(D79,6,(FIND(" ",D79,3)+1))*1 -> 80 | C79: =MID(D79,FIND(CHAR(160),SUBSTITUTE(D79," ",CHAR(160),2)),100) -> Internet Transfer From 1684 | D79: 7/22 80.00 Internet Transfer From 1684 | E79: Transfer | G79: 7/30 | H79: 8810 | I79: Internet Transfer From 4489 | J79: 7/30 8,810.23 Internet Transfer From 4489 | K79: Transfer
A80: =LEFT(D80,4) -> 7/22 | B80: =MID(D80,6,(FIND(" ",D80,3)+1))*1 -> 200 | C80: =MID(D80,FIND(CHAR(160),SUBSTITUTE(D80," ",CHAR(160),2)),100) -> Internet Transfer From 1684 | D80: 7/22 200.00 Internet Transfer From 1684 | E80: Transfer | G80: 8/01 | H80: 12 | I80: Internet Transfer From 4489 | J80: 8/01 12.00 Internet Transfer From 4489 | K80: Transfer
A81: =LEFT(D81,4) -> 7/23 | B81: =MID(D81,6,(FIND(" ",D81,3)+1))*1 -> 980.3 | C81: =MID(D81,FIND(CHAR(160),SUBSTITUTE(D81," ",CHAR(160),2)),100) -> Rev: HEADWAYCAPITAL 1/HEADWAY | D81: 7/23 980.30 Rev: HEADWAYCAPITAL 1/HEADWAY | E81: Loan | G81: 8/05 | H81: 779.7 | I81: Internet Transfer From 4489 | J81: 8/05 779.70 Internet Transfer From 4489 | K81: Transfer
A82: =LEFT(D82,4) -> 7/24 | B82: =MID(D82,6,(FIND(" ",D82,3)+1))*1 -> 7479 | C82: =MID(D82,FIND(CHAR(160),SUBSTITUTE(D82," ",CHAR(160),2)),100) -> DEPOSIT | D82: 7/24 7,479.00 DEPOSIT | G82: 8/06 | H82: 288 | I82: Internet Transfer From 4489 | J82: 8/06 288.00 Internet Transfer From 4489 | K82: Transfer
A83: =LEFT(D83,4) -> 7/24 | B83: =MID(D83,6,(FIND(" ",D83,3)+1))*1 -> 20.48 | C83: =MID(D83,FIND(CHAR(160),SUBSTITUTE(D83," ",CHAR(160),2)),100) -> Internet Transfer From 1854 | D83: 7/24 20.48 Internet Transfer From 1854 | E83: Transfer | G83: 8/06 | H83: 10213 | I83: Internet Transfer From 4489 | J83: 8/06 10,213.37 Internet Transfer From 4489 | K83: Transfer
A84: =LEFT(D84,4) -> 7/30 | B84: =MID(D84,6,(FIND(" ",D84,3)+1))*1 -> 15125 | C84: =MID(D84,FIND(CHAR(160),SUBSTITUTE(D84," ",CHAR(160),2)),100) -> DEPOSIT | D84: 7/30 15,125.00 DEPOSIT | G84: 8/07 | H84: 714.76 | I84: Internet Transfer From 4489 | J84: 8/07 714.76 Internet Transfer From 4489 | K84: Transfer
A85: =LEFT(D85,4) -> 7/30 | B85: =MID(D85,6,(FIND(" ",D85,3)+1))*1 -> 38.3 | C85: =MID(D85,FIND(CHAR(160),SUBSTITUTE(D85," ",CHAR(160),2)),100) -> Internet Transfer From 1684 | D85: 7/30 38.30 Internet Transfer From 1684 | E85: Transfer | G85: 8/09 | H85: 1500 | I85: Internet Transfer From 4489 | J85: 8/09 1,500.00 Internet Transfer From 4489 | K85: Transfer
A86: =LEFT(D86,4) -> 8/06 | B86: =MID(D86,6,(FIND(" ",D86,3)+1))*1 -> 15549 | C86: =MID(D86,FIND(CHAR(160),SUBSTITUTE(D86," ",CHAR(160),2)),100) -> DEPOSIT | D86: 8/06 15,549.00 DEPOSIT | G86: 8/14 | H86: 6679 | I86: Internet Transfer From 4489 | J86: 8/14 6,679.08 Internet Transfer From 4489 | K86: Transfer
A87: =LEFT(D87,4) -> 8/12 | B87: =MID(D87,6,(FIND(" ",D87,3)+1))*1 -> 150 | C87: =MID(D87,FIND(CHAR(160),SUBSTITUTE(D87," ",CHAR(160),2)),100) -> Internet Transfer From 1684 | D87: 8/12 150.00 Internet Transfer From 1684 | E87: Transfer | G87: 8/21 | H87: 8711 | I87: Internet Transfer From 4489 | J87: 8/21 8,711.75 Internet Transfer From 4489 | K87: Transfer
A88: =LEFT(D88,4) -> 8/12 | B88: =MID(D88,6,(FIND(" ",D88,3)+1))*1 -> 1460 | C88: =MID(D88,FIND(CHAR(160),SUBSTITUTE(D88," ",CHAR(160),2)),100) -> Internet Transfer From 1854 | D88: 8/12 1,460.00 Internet Transfer From 1854 | E88: Transfer | G88: 8/22 | H88: 800 | I88: Internet Transfer From 4489 | J88: 8/22 800.00 Internet Transfer From 4489 | K88: Transfer
A89: =LEFT(D89,4) -> 8/13 | B89: =MID(D89,6,(FIND(" ",D89,3)+1))*1 -> 8062 | C89: =MID(D89,FIND(CHAR(160),SUBSTITUTE(D89," ",CHAR(160),2)),100) -> DEPOSIT | D89: 8/13 8,062.40 DEPOSIT | G89: 8/23 | H89: 500 | I89: Internet Transfer From 4489 | J89: 8/23 500.00 Internet Transfer From 4489 | K89: Transfer
A90: =LEFT(D90,4) -> 8/15 | B90: =MID(D90,6,(FIND(" ",D90,3)+1))*1 -> 6355 | C90: =MID(D90,FIND(CHAR(160),SUBSTITUTE(D90," ",CHAR(160),2)),100) -> DEPOSIT | D90: 8/15 6,355.00 DEPOSIT
A91: =LEFT(D91,4) -> 8/21 | B91: =MID(D91,6,(FIND(" ",D91,3)+1))*1 -> 7200 | C91: =MID(D91,FIND(CHAR(160),SUBSTITUTE(D91," ",CHAR(160),2)),100) -> DEPOSIT | D91: 8/21 7,200.00 DEPOSIT
A92: =LEFT(D92,4) -> 8/23 | B92: =MID(D92,6,(FIND(" ",D92,3)+1))*1 -> 8182 | C92: =MID(D92,FIND(CHAR(160),SUBSTITUTE(D92," ",CHAR(160),2)),100) -> DEPOSIT | D92: 8/23 8,182.40 DEPOSIT
